[Event "XLII Barbera Open 2019"]
[Site "Barbera"]
[Date "2019.07.11"]
[Round "8.8"]
[White "Kulkarni, Vinayak"]
[Black "Volkov, Dmitry V"]
[Result "1/2-1/2"]
[ECO "A05"]
[WhiteElo "2143"]
[BlackElo "2199"]
[Annotator "NA"]
[PlyCount "99"]
[EventDate "2019.07.04"]
[EventType "swiss"]
[EventCountry "ESP"]
[SourceTitle "playchess.com"]
[Source "ChessBase"]
[SourceQuality "1"]
[TimeControl "5400+30"]

1. Nf3 {[%emt 0:00:00]} Nf6 {[%emt 0:00:00]} 2. g3 {[%emt 0:00:00]} g6 {[%emt 0:00:00]} 3. Bg2 {[%emt 0:00:02]} Bg7 {[%emt 0:00:00]} 4. O-O {[%emt 0:00:12]} d6 {[%emt 0:00:00]} 5. d4 {[%emt 0:00:13]} O-O {[%emt 0:00:02]} 6. a4 {[%emt 0:00:14]} Nc6 {[%emt 0:00:09]} 7. a5 {[%emt 0:00:29]} a6 {[%emt 0:00:06]} 8. d5 {[%emt 0:01:12]} Na7 {[%emt 0:00:05]} 9. c4 {[%emt 0:02:08]} e6 {[%emt 0:00:07]} 10. Nc3 {[%emt 0:06:36]} exd5 {[%emt 0:00:16]} 11. cxd5 {[%emt 0:01:25]} Re8 {[%emt 0:05:47]} 12. Nd4 {[%emt 0:05:22]} Bd7 {[%emt 0:01:07]} 13. h3 {[%emt 0:08:46]} Qc8 {[%emt 0:00:53]} 14. Kh2 {[%emt 0:00:51]} h5 {[%emt 0:00:29]} 15. Bg5 {[%emt 0:11:56]} Nh7 {[%emt 0:06:43]} 16. Be3 {[%emt 0:01:46]} h4 17. Qd2 Qd8 {[%emt 0:10:36]} 18. Bh6 {[%emt 0:15:22]} Bh8 {[%emt 0:03:17]} 19. Nf3 {[%emt 0:02:43]} Nb5 {[%emt 0:02:22]} 20. Nd1 {[%emt 0:13:24]} Qe7 {[%emt 0:09:09]} 21. Be3 c5 {[%emt 0:07:57]} 22. dxc6 {[%emt 0:08:39]} hxg3+ {[%emt 0:01:36]} 23. fxg3 {[%emt 0:00:08]} Bxc6 {[%emt 0:00:03]} 24. Rf2 {[%emt 0:03:46]} Nf6 {[%emt 0:02:20]} 25. Ng5 {[%emt 0:02:34]} Bxg2 {[%emt 0:01:15]} 26. Kxg2 {[%emt 0:00:06]} Ne4 {[%emt 0:00:24]} 27. Nxe4 {[%emt 0:01:07]} Qxe4+ {[%emt 0:00:03]} 28. Kh2 {[%emt 0:01:00]} d5 {[%emt 0:04:55]} 29. Rc1 {[%emt 0:05:32]} Nd6 {[%emt 0:09:38]} 30. Bc5 {[%emt 0:03:17]} Nc4 {[%emt 0:04:17]} 31. Qb4 {[%emt 0:01:03]} Rab8 {[%emt 0:03:48]} 32. Nc3 {[%emt 0:01:47]} Qe6 {[%emt 0:00:36]} 33. Nxd5 {[%emt 0:00:42]} Qxd5 {[%emt 0:01:13]} 34. Qxc4 {[%emt 0:00:06]} Qxc4 {[%emt 0:00:24]} 35. Rxc4 {[%emt 0:00:40]} Bxb2 {[%emt 0:00:25]} 36. e3 {[%emt 0:00:34]} Bg7 {[%emt 0:01:08]} 37. Bb6 {[%emt 0:01:11]} Rbc8 {[%emt 0:00:33]} 38. Rfc2 {[%emt 0:00:45]} Rxc4 {[%emt 0:01:26]} 39. Rxc4 {[%emt 0:00:04]} Be5 {[%emt 0:00:40]} 40. Kg2 {[%emt 0:00:38]} f6 {[%emt 0:01:13]} 41. Kf3 {[%emt 0:00:45]} Kf7 {[%emt 0:00:03]} 42. Rh4 {[%emt 0:00:38]} Kg7 {[%emt 0:00:32]} 43. Rc4 {[%emt 0:00:19]} Rh8 {[%emt 0:00:51]} 44. h4 {[%emt 0:00:23]} Kf7 {[%emt 0:00:23]} 45. Rb4 {[%emt 0:00:46]} Bd6 {[%emt 0:01:58]} 46. Rd4 {[%emt 0:00:35]} Ke6 {[%emt 0:00:20]} 47. Rg4 {[%emt 0:00:13]} Kf7 {[%emt 0:01:23]} 48. Rd4 {[%emt 0:00:09]} Ke6 {[%emt 0:00:42]} 49. Rg4 {[%emt 0:00:06]} Kf7 {[%emt 0:00:44]} 50. Ke4 1/2-1/2

[Event "XLII Barbera Open 2019"]
[Site "Barbera"]
[Date "2019.07.11"]
[Round "8.9"]
[White "Leon Valdes, Jony Wilson"]
[Black "Deng Yu Dong Michael"]
[Result "1-0"]
[ECO "D02"]
[WhiteElo "2364"]
[BlackElo "1900"]
[Annotator "NA"]
[PlyCount "69"]
[EventDate "2019.07.04"]
[EventType "swiss"]
[EventCountry "ESP"]
[SourceTitle "playchess.com"]
[Source "ChessBase"]
[SourceQuality "1"]
[TimeControl "5400+30"]

1. d4 {[%emt 0:14:13]} d5 {[%emt 0:00:00]} 2. Nf3 {[%emt 0:00:14]} Nf6 {[%emt 0:00:12]} 3. g3 {[%emt 0:00:31]} e6 {[%emt 0:01:41]} 4. Bg2 {[%emt 0:00:07]} Bb4+ {[%emt 0:03:59]} 5. c3 {[%emt 0:00:17]} Bd6 {[%emt 0:00:40]} 6. O-O {[%emt 0:00:38]} Nbd7 {[%emt 0:01:25]} 7. c4 {[%emt 0:00:33]} c6 {[%emt 0:03:39]} 8. b3 {[%emt 0:00:47]} dxc4 {[%emt 0:05:30]} 9. bxc4 {[%emt 0:00:08]} e5 {[%emt 0:00:54]} 10. Bb2 {[%emt 0:07:22]} Qe7 {[%emt 0:07:08]} 11. e3 {[%emt 0:01:38]} O-O {[%emt 0:02:56]} 12. Nc3 {[%emt 0:00:13]} Ba3 {[%emt 0:10:13]} 13. Bxa3 {[%emt 0:06:16]} Qxa3 {[%emt 0:00:08]} 14. Qb3 {[%emt 0:00:49]} Qa5 {[%emt 0:10:09]} 15. Rfd1 {[%emt 0:04:58]} exd4 {[%emt 0:06:19]} 16. exd4 {[%emt 0:00:10]} Nb6 {[%emt 0:01:13]} 17. d5 {[%emt 0:03:04]} cxd5 {[%emt 0:01:00]} 18. cxd5 {[%emt 0:04:22]} Bd7 {[%emt 0:06:24]} 19. Ne5 {[%emt 0:02:26]} Rac8 {[%emt 0:06:11]} 20. Nxd7 {[%emt 0:08:48]} Nbxd7 {[%emt 0:00:28]} 21. Ne2 {[%emt 0:03:21]} Nc5 {[%emt 0:02:05]} 22. Qb2 {[%emt 0:04:19]} Rfd8 {[%emt 0:03:01]} 23. Nd4 {[%emt 0:02:56]} Na4 {[%emt 0:21:56]} 24. Qxb7 {[%emt 0:00:37]} Rb8 {[%emt 0:01:05]} 25. Qe7 {[%emt 0:06:20]} Rd7 {[%emt 0:03:03]} 26. Qa3 {[%emt 0:00:16]} Qb4 {[%emt 0:00:25]} 27. Qf3 {[%emt 0:04:20]} Re8 {[%emt 0:01:11]} 28. Nc6 {[%emt 0:02:09]} Qc3 {[%emt 0:00:16]} 29. Rac1 {[%emt 0:02:47]} Qxf3 {[%emt 0:00:09]} 30. Bxf3 {[%emt 0:00:04]} Nb6 {[%emt 0:00:44]} 31. Rc5 {[%emt 0:00:38]} Ne4 {[%emt 0:00:19]} 32. Ra5 {[%emt 0:02:05]} Nc3 {[%emt 0:00:57]} 33. Rd3 {[%emt 0:00:39]} Ne2+ {[%emt 0:00:37]} 34. Kf1 {[%emt 0:00:54]} Nc1 {[%emt 0:00:25]} 35. Rc3 {[%emt 0:00:33]} 1-0

[Event "XLII Barbera Open 2019"]
[Site "Barbera"]
[Date "2019.07.11"]
[Round "8.10"]
[White "Radnai, Adam"]
[Black "Lopez Gonzalez, Abel Fabian"]
[Result "1/2-1/2"]
[ECO "D00"]
[WhiteElo "2309"]
[BlackElo "2355"]
[Annotator "ChessBase"]
[PlyCount "101"]
[EventDate "2019.07.04"]
[EventType "swiss"]
[EventCountry "ESP"]
[TimeControl "5400+30"]

1. d4 d5 2. Bf4 Nf6 3. e3 e6 4. Nd2 Bd6 5. Ngf3 O-O 6. Bd3 b6 7. Ne5 c5 8. c3 Ba6 9. Bxa6 Nxa6 10. Qa4 Nb8 11. O-O Nh5 12. Rfe1 Qc7 13. Qd1 Nxf4 14. exf4 Nc6 15. Rc1 Ne7 16. c4 Qb7 17. cxd5 Qxd5 18. Ne4 Bxe5 19. dxe5 Qxd1 20. Rcxd1 Rfd8 21. Nd6 Rd7 22. Rd2 Rad8 23. Red1 Nf5 24. Ne4 Rxd2 25. Rxd2 Rd5 26. Kf1 Kf8 27. Ke2 Ke7 28. g4 Nd4+ 29. Ke3 f6 30. exf6+ gxf6 31. b4 f5 32. bxc5 bxc5 33. Nxc5 Rxc5 34. Rxd4 fxg4 35. Ra4 a5 36. Ke4 Kf6 37. f3 h5 38. fxg4 hxg4 39. Ke3 Kg6 40. Kf2 Kf5 41. Kg3 Rc3+ 42. Kg2 Rc2+ 43. Kg3 Rc3+ 44. Kg2 Rd3 45. Rxa5+ Kxf4 46. Ra4+ Kf5 47. Ra8 Rd2+ 48. Kg3 Rd3+ 49. Kg2 Rd2+ 50. Kg3 Rd3+ 51. Kg2 1/2-1/2

[Event "XLII Barbera Open 2019"]
[Site "Barbera"]
[Date "2019.07.12"]
[Round "9.1"]
[White "Peralta, Fernando"]
[Black "Harutyunian, Tigran K."]
[Result "1-0"]
[ECO "D41"]
[WhiteElo "2562"]
[BlackElo "2539"]
[Annotator "ChessBase"]
[PlyCount "209"]
[EventDate "2019.07.04"]
[EventType "swiss"]
[EventCountry "ESP"]
[SourceTitle "playchess.com"]
[Source "ChessBase"]
[SourceQuality "1"]
[TimeControl "5400+30"]

1. d4 {[%emt 0:00:00]} Nf6 {[%emt 0:00:00]} 2. c4 {[%emt 0:00:00]} e6 {[%emt 0:00:13]} 3. Nf3 {[%emt 0:00:00]} d5 {[%emt 0:00:16]} 4. Nc3 {[%emt 0:00:00]} c5 {[%emt 0:00:25]} 5. cxd5 {[%emt 0:00:43]} Nxd5 {[%emt 0:00:12]} 6. e4 {[%emt 0:00:16]} Nxc3 {[%emt 0:00:26]} 7. bxc3 {[%emt 0:00:05]} cxd4 {[%emt 0:00:08]} 8. cxd4 {[%emt 0:00:07]} Bb4+ {[%emt 0:00:06]} 9. Bd2 {[%emt 0:00:06]} Bxd2+ {[%emt 0:00:06]} 10. Qxd2 {[%emt 0:00:07]} O-O {[%emt 0:00:27]} 11. Bc4 {[%emt 0:00:28]} Nd7 {[%emt 0:00:15]} 12. O-O {[%emt 0:00:13]} b6 {[%emt 0:00:03]} 13. Rad1 {[%emt 0:00:54]} Bb7 {[%emt 0:00:10]} 14. Rfe1 {[%emt 0:00:07]} Rc8 {[%emt 0:00:09]} 15. Bb3 {[%emt 0:00:05]} Re8 {[%emt 0:00:29]} 16. h4 {[%emt 0:03:03]} h6 {[%emt 0:07:37]} 17. Qe3 {[%emt 0:02:23]} Nf6 {[%emt 0:04:36]} 18. Qf4 {[%emt 0:00:48]} Nh5 {[%emt 0:00:34]} 19. Qh2 {[%emt 0:01:25]} Nf6 {[%emt 0:05:08]} 20. d5 {[%emt 0:02:41]} exd5 {[%emt 0:01:27]} 21. e5 {[%emt 0:00:07]} Nh7 {[%emt 0:04:40]} 22. Nd4 {[%emt 0:01:29]} Qd7 {[%emt 0:01:14]} 23. Qf4 {[%emt 0:06:25]} Nf8 {[%emt 0:03:19]} 24. Nf5 {[%emt 0:02:18]} Rc5 {[%emt 0:07:17]} 25. h5 {[%emt 0:27:19]} Ne6 {[%emt 0:07:12]} 26. Qg3 {[%emt 0:06:31]} Kh8 {[%emt 0:05:00]} 27. f4 {[%emt 0:02:24]} a5 {[%emt 0:07:32]} 28. Nd6 {[%emt 0:01:11]} a4 {[%emt 0:00:42]} 29. Nxb7 {[%emt 0:08:00]} Qxb7 {[%emt 0:00:08]} 30. Bxa4 {[%emt 0:00:04]} b5 {[%emt 0:00:30]} 31. Bb3 {[%emt 0:00:36]} d4 {[%emt 0:05:36]} 32. Bxe6 {[%emt 0:07:31]} fxe6 {[%emt 0:00:29]} 33. Rxd4 {[%emt 0:00:40]} Rc2 34. Red1 {[%emt 0:03:20]} Rg8 {[%emt 0:16:37]} 35. a3 {[%emt 0:05:15]} Ra2 {[%emt 0:00:06]} 36. Kh2 {[%emt 0:01:15]} Qa8 {[%emt 0:01:23]} 37. R1d3 {[%emt 0:07:39]} Qe8 {[%emt 0:06:36]} 38. Qg4 {[%emt 0:01:20]} Qe7 {[%emt 0:04:25]} 39. Rd6 {[%emt 0:02:07]} Ra1 {[%emt 0:00:45]} 40. Rxe6 {[%emt 0:01:42]} Qc5 {[%emt 0:00:47]} 41. Rd1 {[%emt 0:00:41]} Rxd1 {[%emt 0:00:14]} 42. Qxd1 {[%emt 0:00:03]} Qc4 {[%emt 0:00:05]} 43. Qg4 {[%emt 0:00:56]} Rf8 {[%emt 0:00:01]} 44. Rb6 {[%emt 0:02:09]} Qe4 {[%emt 0:01:38]} 45. e6 {[%emt 0:01:42]} Rf6 {[%emt 0:00:15]} 46. Rxb5 {[%emt 0:04:51]} Rxe6 {[%emt 0:00:48]} 47. Rb7 {[%emt 0:00:51]} Qxb7 {[%emt 0:00:55]} 48. Qxe6 {[%emt 0:00:04]} Qa7 {[%emt 0:00:37]} 49. Qe8+ {[%emt 0:00:34]} Kh7 {[%emt 0:00:02]} 50. Qe4+ {[%emt 0:00:07]} Kh8 {[%emt 0:00:04]} 51. Qe8+ {[%emt 0:00:49]} Kh7 {[%emt 0:00:02]} 52. Qe4+ {[%emt 0:00:11]} Kh8 {[%emt 0:00:01]} 53. a4 {[%emt 0:00:07]} Qa5 {[%emt 0:00:29]} 54. Qe8+ {[%emt 0:01:36]} Kh7 {[%emt 0:00:02]} 55. Qe4+ {[%emt 0:00:08]} Kh8 {[%emt 0:00:04]} 56. Qe8+ {[%emt 0:00:17]} Kh7 {[%emt 0:00:01]} 57. g3 {[%emt 0:00:52]} Qd2+ {[%emt 0:03:38]} 58. Kh3 {[%emt 0:00:04]} Qd5 {[%emt 0:00:18]} 59. Qg6+ {[%emt 0:00:21]} Kh8 {[%emt 0:00:02]} 60. Qe8+ {[%emt 0:00:05]} Kh7 {[%emt 0:00:04]} 61. Qb5 {[%emt 0:02:44]} Qf3 {[%emt 0:03:13]} 62. Qf5+ {[%emt 0:00:31]} Kh8 {[%emt 0:00:01]} 63. Qf8+ {[%emt 0:00:21]} Kh7 {[%emt 0:00:01]} 64. Qf5+ {[%emt 0:00:04]} Kh8 {[%emt 0:00:06]} 65. Qc8+ {[%emt 0:00:22]} Kh7 {[%emt 0:00:01]} 66. Qc2+ {[%emt 0:00:15]} Kh8 {[%emt 0:00:01]} 67. Kh4 {[%emt 0:00:52]} Qd5 {[%emt 0:05:51]} 68. Qc8+ {[%emt 0:00:05]} Kh7 {[%emt 0:00:01]} 69. Qc2+ {[%emt 0:00:04]} Kh8 {[%emt 0:00:05]} 70. Kg4 {[%emt 0:01:39]} Qd7+ {[%emt 0:00:02]} 71. Kf3 {[%emt 0:00:48]} Qd5+ {[%emt 0:00:01]} 72. Ke3 {[%emt 0:00:31]} Qxh5 {[%emt 0:00:08]} 73. Qc8+ {[%emt 0:00:17]} Kh7 {[%emt 0:00:02]} 74. Qc2+ {[%emt 0:00:13]} Kh8 {[%emt 0:00:02]} 75. Kd4 {[%emt 0:01:00]} Qg4 {[%emt 0:00:01]} 76. Qb3 {[%emt 0:00:30]} Qd7+ {[%emt 0:02:35]} 77. Kc3 {[%emt 0:00:11]} Qc6+ {[%emt 0:00:07]} 78. Kb2 {[%emt 0:00:42]} Qc5 {[%emt 0:01:02]} 79. Qc3 {[%emt 0:00:32]} Qb6+ {[%emt 0:00:01]} 80. Ka3 {[%emt 0:00:35]} Qd6+ {[%emt 0:00:02]} 81. Kb2 {[%emt 0:00:21]} Qb6+ {[%emt 0:00:04]} 82. Ka2 {[%emt 0:00:21]} Qe6+ {[%emt 0:00:09]} 83. Ka1 {[%emt 0:00:21]} Qe4 {[%emt 0:01:00]} 84. a5 {[%emt 0:00:24]} h5 {[%emt 0:04:39]} 85. Kb2 {[%emt 0:00:23]} h4 {[%emt 0:00:11]} 86. gxh4 {[%emt 0:00:29]} Qxf4 {[%emt 0:00:05]} 87. a6 {[%emt 0:00:54]} Qxh4 {[%emt 0:01:18]} 88. Qc8+ {[%emt 0:00:37]} Kh7 {[%emt 0:00:02]} 89. Qf5+ {[%emt 0:00:20]} Kh6 {[%emt 0:00:29]} 90. Qe6+ {[%emt 0:00:23]} g6 {[%emt 0:01:55]} 91. Qe3+ {[%emt 0:00:31]} Kh7 {[%emt 0:00:20]} 92. Qa7+ {[%emt 0:00:29]} Kh6 {[%emt 0:00:03]} 93. Qe3+ {[%emt 0:00:05]} Kh7 {[%emt 0:00:04]} 94. a7 {[%emt 0:00:10]} Qb4+ {[%emt 0:00:26]} 95. Kc1 {[%emt 0:00:47]} Qc4+ {[%emt 0:00:08]} 96. Kd2 {[%emt 0:00:22]} Qa2+ {[%emt 0:00:34]} 97. Ke1 {[%emt 0:00:18]} Qa1+ {[%emt 0:00:20]} 98. Kf2 {[%emt 0:00:32]} Qb2+ {[%emt 0:01:49]} 99. Kg3 {[%emt 0:01:13]} Qb7 {[%emt 0:00:06]} 100. Qc5 {[%emt 0:00:50]} Qb3+ {[%emt 0:02:33]} 101. Kf4 {[%emt 0:00:17]} Qa4+ {[%emt 0:03:42]} 102. Kg5 {[%emt 0:00:49]} Qd7 {[%emt 0:00:44]} 103. a8=Q Qd2+ 104. Kg4 Qd7+ 105. Kg3 1-0

[Event "XLII Barbera Open 2019"]
[Site "Barbera"]
[Date "2019.07.12"]
[Round "9.2"]
[White "Rios, Cristhian Camilo"]
[Black "Oliva Castaneda, Kevel"]
[Result "1-0"]
[ECO "D37"]
[WhiteElo "2520"]
[BlackElo "2467"]
[Annotator "ChessBase"]
[PlyCount "77"]
[EventDate "2019.07.04"]
[EventType "swiss"]
[EventCountry "ESP"]
[SourceTitle "playchess.com"]
[Source "ChessBase"]
[SourceQuality "1"]
[TimeControl "5400+30"]

1. d4 {[%emt 0:00:00]} d5 {[%emt 0:00:00]} 2. c4 {[%emt 0:00:00]} e6 {[%emt 0:00:00]} 3. Nf3 {[%emt 0:00:00]} Nf6 {[%emt 0:00:00]} 4. Nc3 {[%emt 0:00:00]} a6 {[%emt 0:00:00]} 5. cxd5 {[%emt 0:00:01]} exd5 {[%emt 0:00:02]} 6. Bg5 {[%emt 0:00:07]} Be6 {[%emt 0:00:09]} 7. e3 {[%emt 0:00:07]} Nbd7 {[%emt 0:00:10]} 8. Bd3 {[%emt 0:00:07]} Bd6 {[%emt 0:00:16]} 9. O-O {[%emt 0:00:17]} O-O {[%emt 0:00:17]} 10. Bf4 {[%emt 0:00:27]} Bxf4 {[%emt 0:02:28]} 11. exf4 {[%emt 0:00:10]} Bg4 {[%emt 0:00:08]} 12. h3 {[%emt 0:00:57]} Bxf3 {[%emt 0:00:08]} 13. Qxf3 {[%emt 0:00:07]} c6 {[%emt 0:01:09]} 14. Rad1 {[%emt 0:00:22]} Re8 {[%emt 0:10:35]} 15. b3 {[%emt 0:02:54]} Qe7 {[%emt 0:01:55]} 16. f5 {[%emt 0:00:26]} h6 {[%emt 0:12:04]} 17. Bb1 {[%emt 0:04:45]} Ne4 18. Bxe4 {[%emt 0:08:42]} dxe4 {[%emt 0:04:07]} 19. Qf4 e3 {[%emt 0:09:43]} 20. Rfe1 {[%emt 0:06:42]} exf2+ {[%emt 0:00:09]} 21. Qxf2 {[%emt 0:00:06]} Qf8 {[%emt 0:04:43]} 22. Ne4 {[%emt 0:00:39]} Rad8 23. Qf4 {[%emt 0:09:43]} Qb4 {[%emt 0:16:59]} 24. Re3 f6 {[%emt 0:08:34]} 25. Rdd3 {[%emt 0:12:45]} Kh7 {[%emt 0:07:05]} 26. Qc7 {[%emt 0:09:42]} Qb6 {[%emt 0:03:05]} 27. Qg3 {[%emt 0:01:20]} Nf8 {[%emt 0:01:45]} 28. Kh2 {[%emt 0:02:47]} Qa5 {[%emt 0:01:03]} 29. Nc5 {[%emt 0:01:05]} Qb6 30. Rxe8 {[%emt 0:02:06]} Rxe8 {[%emt 0:03:46]} 31. Ne6 {[%emt 0:00:09]} g5 {[%emt 0:01:15]} 32. fxg6+ {[%emt 0:01:08]} Nxg6 {[%emt 0:00:04]} 33. Re3 {[%emt 0:00:45]} Rg8 {[%emt 0:02:00]} 34. Qf2 {[%emt 0:04:51]} Qa5 {[%emt 0:03:48]} 35. Qxf6 {[%emt 0:00:27]} Qxa2 {[%emt 0:00:11]} 36. Rg3 {[%emt 0:00:46]} Qc2 {[%emt 0:00:07]} 37. Rg4 {[%emt 0:00:43]} c5 {[%emt 0:05:16]} 38. h4 {[%emt 0:01:32]} Qd1 {[%emt 0:05:00]} 39. Nf8+ {[%emt 0:01:13]} 1-0

[Event "XLII Barbera Open 2019"]
[Site "Barbera"]
[Date "2019.07.12"]
[Round "9.3"]
[White "Moskalenko, Viktor"]
[Black "Munoz, Miguel"]
[Result "1/2-1/2"]
[ECO "E24"]
[WhiteElo "2500"]
[BlackElo "2511"]
[Annotator "ChessBase"]
[PlyCount "163"]
[EventDate "2019.07.04"]
[EventType "swiss"]
[EventCountry "ESP"]
[SourceTitle "playchess.com"]
[Source "ChessBase"]
[SourceQuality "1"]
[TimeControl "5400+30"]

1. d4 {[%emt 0:00:00]} Nf6 {[%emt 0:00:00]} 2. c4 {[%emt 0:00:00]} e6 {[%emt 0:00:00]} 3. Nc3 {[%emt 0:00:00]} Bb4 {[%emt 0:00:12]} 4. a3 {[%emt 0:02:57]} Bxc3+ {[%emt 0:00:27]} 5. bxc3 {[%emt 0:00:03]} d5 {[%emt 0:00:10]} 6. e3 {[%emt 0:01:25]} c5 {[%emt 0:00:21]} 7. cxd5 {[%emt 0:00:11]} Nxd5 {[%emt 0:02:03]} 8. Bb2 {[%emt 0:05:44]} cxd4 9. cxd4 {[%emt 0:03:04]} Qa5+ {[%emt 0:05:52]} 10. Qd2 {[%emt 0:00:28]} Qxd2+ {[%emt 0:00:19]} 11. Kxd2 {[%emt 0:00:06]} O-O 12. Nf3 {[%emt 0:06:57]} b6 {[%emt 0:03:00]} 13. Rc1 {[%emt 0:07:28]} Ba6 {[%emt 0:00:56]} 14. Ne5 {[%emt 0:11:17]} Bxf1 {[%emt 0:06:08]} 15. Rhxf1 {[%emt 0:00:05]} f6 16. Nd3 {[%emt 0:04:50]} b5 {[%emt 0:03:35]} 17. a4 bxa4 {[%emt 0:02:49]} 18. Nc5 {[%emt 0:02:37]} Re8 {[%emt 0:06:13]} 19. e4 {[%emt 0:11:22]} Nb6 {[%emt 0:00:36]} 20. Nb7 {[%emt 0:18:07]} Re7 {[%emt 0:04:20]} 21. Na5 {[%emt 0:02:50]} Na6 {[%emt 0:03:51]} 22. Ke3 {[%emt 0:02:20]} Rd7 {[%emt 0:01:18]} 23. Ba3 {[%emt 0:01:10]} Rad8 {[%emt 0:01:38]} 24. Nc6 {[%emt 0:01:05]} Re8 {[%emt 0:00:26]} 25. Rc3 {[%emt 0:09:25]} Nc7 {[%emt 0:09:15]} 26. Bc5 Ncd5+ {[%emt 0:07:41]} 27. exd5 {[%emt 0:00:45]} Nxd5+ {[%emt 0:00:15]} 28. Kd2 {[%emt 0:01:35]} Rc8 {[%emt 0:00:19]} 29. Na5 {[%emt 0:02:35]} Nxc3 {[%emt 0:00:08]} 30. Kxc3 e5 {[%emt 0:00:09]} 31. Kb4 {[%emt 0:02:49]} exd4 32. Rd1 {[%emt 0:01:15]} a3 {[%emt 0:06:04]} 33. Nb3 Rb7+ {[%emt 0:11:13]} 34. Kxa3 {[%emt 0:00:40]} Rxb3+ {[%emt 0:00:05]} 35. Kxb3 {[%emt 0:00:02]} Rxc5 {[%emt 0:00:11]} 36. Rxd4 {[%emt 0:00:03]} Rc7 {[%emt 0:00:13]} 37. h4 {[%emt 0:01:29]} Kf7 {[%emt 0:00:39]} 38. Ra4 {[%emt 0:00:30]} h5 39. Ra5 {[%emt 0:00:22]} Kg6 {[%emt 0:00:49]} 40. f3 {[%emt 0:00:28]} Re7 {[%emt 0:05:44]} 41. Kc3 {[%emt 0:01:09]} Re2 42. Kd3 {[%emt 0:00:02]} Rxg2 {[%emt 0:00:43]} 43. Rxa7 {[%emt 0:00:10]} Rb2 {[%emt 0:05:41]} 44. Ra4 {[%emt 0:00:19]} Kf5 {[%emt 0:01:00]} 45. Ke3 Rh2 {[%emt 0:04:05]} 46. Ra5+ {[%emt 0:01:03]} Kg6 {[%emt 0:00:06]} 47. Ra4 {[%emt 0:00:04]} Kh7 {[%emt 0:00:15]} 48. Rb4 {[%emt 0:00:47]} Kh6 {[%emt 0:00:00]} 49. Rf4 {[%emt 0:01:24]} Rg2 50. Rf5 {[%emt 0:01:10]} Kg6 {[%emt 0:08:29]} 51. Ra5 {[%emt 0:00:03]} Rh2 {[%emt 0:01:38]} 52. Ra4 Kf7 53. Ra7+ {[%emt 0:01:05]} Kg8 {[%emt 0:00:19]} 54. Ra4 {[%emt 0:00:15]} Kh7 {[%emt 0:00:14]} 55. Rb4 {[%emt 0:00:19]} Kh6 {[%emt 0:02:00]} 56. Rf4 {[%emt 0:00:33]} Rb2 {[%emt 0:00:42]} 57. Ra4 {[%emt 0:01:39]} g5 {[%emt 0:00:07]} 58. hxg5+ {[%emt 0:00:32]} Kxg5 {[%emt 0:00:06]} 59. Ra8 {[%emt 0:00:03]} Rb3+ {[%emt 0:01:21]} 60. Kf2 {[%emt 0:00:05]} f5 61. Rh8 {[%emt 0:02:02]} Rb2+ {[%emt 0:01:29]} 62. Kf1 {[%emt 0:01:33]} h4 {[%emt 0:00:58]} 63. Kg1 {[%emt 0:00:18]} Kf4 {[%emt 0:00:25]} 64. Rh5 {[%emt 0:00:31]} Ra2 {[%emt 0:03:41]} 65. Kf1 {[%emt 0:00:26]} Kg3 {[%emt 0:00:18]} 66. Rg5+ {[%emt 0:00:18]} Kxf3 {[%emt 0:00:29]} 67. Rxf5+ {[%emt 0:00:06]} Kg3 {[%emt 0:00:07]} 68. Rg5+ {[%emt 0:00:06]} Kh2 {[%emt 0:00:11]} 69. Rg4 {[%emt 0:00:51]} h3 {[%emt 0:00:07]} 70. Rg8 {[%emt 0:00:19]} Rg2 {[%emt 0:00:13]} 71. Rf8 {[%emt 0:00:42]} Rg1+ {[%emt 0:00:40]} 72. Kf2 {[%emt 0:00:03]} Rg7 {[%emt 0:00:30]} 73. Rf3 {[%emt 0:00:18]} Rg4 {[%emt 0:00:38]} 74. Kf1 {[%emt 0:00:41]} Rg2 {[%emt 0:00:55]} 75. Ra3 {[%emt 0:00:24]} Rb2 {[%emt 0:00:19]} 76. Rf3 {[%emt 0:00:35]} Rb5 {[%emt 0:00:26]} 77. Kf2 {[%emt 0:00:14]} Rb1 {[%emt 0:00:33]} 78. Ra3 {[%emt 0:00:21]} Rb2+ {[%emt 0:00:34]} 79. Kf1 {[%emt 0:00:07]} Rg2 {[%emt 0:00:20]} 80. Rb3 {[%emt 0:00:32]} Rg3 {[%emt 0:00:10]} 81. Rxg3 {[%emt 0:00:08]} Kxg3 {[%emt 0:00:06]} 82. Kg1 {[%emt 0:00:01]} 1/2-1/2

[Event "XLII Barbera Open 2019"]
[Site "Barbera"]
[Date "2019.07.12"]
[Round "9.4"]
[White "Diaz Hernandez, Heriberto"]
[Black "Berdayes Ason, Dylan Isidro"]
[Result "1-0"]
[ECO "B48"]
[WhiteElo "2353"]
[BlackElo "2461"]
[Annotator "ChessBase"]
[PlyCount "51"]
[EventDate "2019.07.04"]
[EventType "swiss"]
[EventCountry "ESP"]
[SourceTitle "playchess.com"]
[Source "ChessBase"]
[SourceQuality "1"]
[TimeControl "5400+30"]

1. e4 {[%emt 0:35:04]} c5 {[%emt 0:00:00]} 2. Nf3 {[%emt 0:00:13]} e6 {[%emt 0:00:07]} 3. d4 {[%emt 0:00:07]} cxd4 {[%emt 0:00:06]} 4. Nxd4 {[%emt 0:00:04]} Nc6 {[%emt 0:00:25]} 5. Nc3 {[%emt 0:00:09]} Qc7 {[%emt 0:00:05]} 6. Be3 {[%emt 0:00:08]} a6 {[%emt 0:00:03]} 7. Qd2 {[%emt 0:00:10]} Nf6 {[%emt 0:00:03]} 8. f4 {[%emt 0:00:08]} Bb4 {[%emt 0:01:08]} 9. Bd3 {[%emt 0:00:23]} b5 {[%emt 0:00:43]} 10. a3 {[%emt 0:01:51]} Be7 {[%emt 0:06:05]} 11. e5 {[%emt 0:06:12]} Ng4 {[%emt 0:10:34]} 12. Nxc6 {[%emt 0:04:23]} dxc6 {[%emt 0:00:09]} 13. Ne4 {[%emt 0:00:19]} Nxe3 {[%emt 0:08:22]} 14. Qxe3 {[%emt 0:00:07]} c5 {[%emt 0:00:04]} 15. Nd6+ {[%emt 0:03:09]} Bxd6 {[%emt 0:07:23]} 16. exd6 {[%emt 0:00:07]} Qxd6 {[%emt 0:00:53]} 17. O-O-O {[%emt 0:00:15]} Qc7 {[%emt 0:02:45]} 18. Be4 {[%emt 0:16:17]} Rb8 {[%emt 0:12:10]} 19. f5 {[%emt 0:01:54]} h6 {[%emt 0:12:30]} 20. Rhe1 {[%emt 0:10:17]} Rb6 {[%emt 0:04:12]} 21. Rd5 {[%emt 0:06:26]} exd5 {[%emt 0:11:09]} 22. Bxd5+ {[%emt 0:00:16]} Be6 {[%emt 0:00:30]} 23. fxe6 {[%emt 0:00:03]} f6 {[%emt 0:00:37]} 24. e7 {[%emt 0:00:28]} Qd7 {[%emt 0:06:31]} 25. Qd3 {[%emt 0:02:07]} Qg4 {[%emt 0:06:34]} 26. Bc6+ {[%emt 0:00:09]} 1-0